[Event "Titled Tuesday Blitz November 29 Late 2022"]
[White "Arnold, Ken"]
[Black "Estrada Nieto, Julian"]
[WhiteFideId "2056836"]
[BlackFideId "5101018"]
[WhiteElo "2374"]
[BlackElo "2221"]
[Result "1-0"]
[Round "08"]
[TimeControl "180+1"]
[Date "2022.11.30"]
[WhiteClock "0:00:06"]
[BlackClock "0:00:11"]

1. e4 {[%clk 0:03:00]}  e5 {[%clk 0:02:59]} 2. Nf3 {[%clk 0:03:00]}  Nc6 {[%clk 0:03:00]} 3. Bc4 {[%clk 0:03:00]}  Bc5 {[%clk 0:02:59]} 4. O-O {[%clk 0:02:59]}  Nf6 {[%clk 0:02:59]} 5. c3 {[%clk 0:02:58]}  d6 {[%clk 0:02:54]} 6. d4 {[%clk 0:02:58]}  exd4 {[%clk 0:02:55]} 7. cxd4 {[%clk 0:02:58]}  Bb6 {[%clk 0:02:55]} 8. Bg5 {[%clk 0:02:53]}  h6 {[%clk 0:02:55]} 9. Bxf6 {[%clk 0:02:52]}  Qxf6 {[%clk 0:02:55]} 10. e5 {[%clk 0:02:52]}  dxe5 {[%clk 0:02:52]} 11. dxe5 {[%clk 0:02:52]}  Qg6 {[%clk 0:02:41]} 12. Qb3 {[%clk 0:02:28]}  O-O {[%clk 0:02:36]} 13. Nbd2 {[%clk 0:02:18]}  Na5 {[%clk 0:02:35]} 14. Qc3 {[%clk 0:02:13]}  Nxc4 {[%clk 0:02:33]} 15. Nxc4 {[%clk 0:02:11]}  Be6 {[%clk 0:02:19]} 16. Nxb6 {[%clk 0:02:10]}  cxb6 {[%clk 0:02:19]} 17. a3 {[%clk 0:02:03]}  Rac8 {[%clk 0:02:18]} 18. Qe3 {[%clk 0:01:58]}  Bd5 {[%clk 0:02:18]} 19. Rac1 {[%clk 0:01:50]}  Rfe8 {[%clk 0:02:08]} 20. Rfe1 {[%clk 0:01:27]}  Rxc1 {[%clk 0:02:00]} 21. Rxc1 {[%clk 0:01:26]}  Bc6 {[%clk 0:01:55]} 22. g3 {[%clk 0:01:17]}  Qh5 {[%clk 0:01:44]} 23. Rc3 {[%clk 0:00:47]}  Bxf3 {[%clk 0:01:41]} 24. Qxf3 {[%clk 0:00:47]}  Qxf3 {[%clk 0:01:41]} 25. Rxf3 {[%clk 0:00:46]}  Rxe5 {[%clk 0:01:42]} 26. Rd3 {[%clk 0:00:40]}  Re2 {[%clk 0:01:35]} 27. Rd8+ {[%clk 0:00:36]}  Kh7 {[%clk 0:01:35]} 28. b4 {[%clk 0:00:26]}  Ra2 {[%clk 0:01:32]} 29. Rd3 {[%clk 0:00:21]}  a5 {[%clk 0:01:30]} 30. Rb3 {[%clk 0:00:19]}  a4 {[%clk 0:01:27]} 31. Rc3 {[%clk 0:00:19]}  Kg6 {[%clk 0:01:27]} 32. Kg2 {[%clk 0:00:18]}  f6 {[%clk 0:01:26]} 33. Rc7 {[%clk 0:00:18]}  Rxa3 {[%clk 0:01:24]} 34. Rxb7 {[%clk 0:00:18]}  Rb3 {[%clk 0:01:17]} 35. Rxb6 {[%clk 0:00:19]}  Kf5 {[%clk 0:01:16]} 36. h4 {[%clk 0:00:18]}  g5 {[%clk 0:01:15]} 37. hxg5 {[%clk 0:00:16]}  hxg5 {[%clk 0:01:16]} 38. b5 {[%clk 0:00:16]}  Ke5 {[%clk 0:01:13]} 39. Ra6 {[%clk 0:00:16]}  a3 {[%clk 0:01:13]} 40. b6 {[%clk 0:00:17]}  f5 {[%clk 0:01:13]} 41. Ra5+ {[%clk 0:00:16]}  Ke6 {[%clk 0:01:12]} 42. Ra6 {[%clk 0:00:16]}  g4 {[%clk 0:01:10]} 43. b7+ {[%clk 0:00:16]}  Ke5 {[%clk 0:01:07]} 44. Rxa3 {[%clk 0:00:15]}  Rxb7 {[%clk 0:01:07]} 45. Ra5+ {[%clk 0:00:15]}  Kf6 {[%clk 0:01:06]} 46. Ra6+ {[%clk 0:00:15]}  Kg5 {[%clk 0:01:06]} 47. Rc6 {[%clk 0:00:15]}  Rb2 {[%clk 0:01:06]} 48. Rd6 {[%clk 0:00:15]}  Re2 {[%clk 0:01:05]} 49. Rc6 {[%clk 0:00:15]}  Re7 {[%clk 0:01:04]} 50. Rb6 {[%clk 0:00:15]}  Rd7 {[%clk 0:01:03]} 51. Rc6 {[%clk 0:00:15]}  Rh7 {[%clk 0:01:00]} 52. Rd6 {[%clk 0:00:15]}  Rc7 {[%clk 0:00:58]} 53. Re6 {[%clk 0:00:14]}  Rc5 {[%clk 0:00:57]} 54. Rd6 {[%clk 0:00:14]}  Re5 {[%clk 0:00:55]} 55. Rc6 {[%clk 0:00:14]}  f4 {[%clk 0:00:54]} 56. gxf4+ {[%clk 0:00:14]}  Kxf4 {[%clk 0:00:54]} 57. Rc3 {[%clk 0:00:14]}  Re4 {[%clk 0:00:53]} 58. Rc8 {[%clk 0:00:14]}  Rb4 {[%clk 0:00:52]} 59. Rf8+ {[%clk 0:00:14]}  Kg5 {[%clk 0:00:53]} 60. Rg8+ {[%clk 0:00:15]}  Kf5 {[%clk 0:00:52]} 61. Rf8+ {[%clk 0:00:15]}  Ke6 {[%clk 0:00:52]} 62. Kg3 {[%clk 0:00:14]}  Ke7 {[%clk 0:00:49]} 63. Rf4 {[%clk 0:00:14]}  Rb1 {[%clk 0:00:45]} 64. Kxg4 {[%clk 0:00:14]}  Ke6 {[%clk 0:00:45]} 65. Rf8 {[%clk 0:00:13]}  Rg1+ {[%clk 0:00:45]} 66. Kf4 {[%clk 0:00:13]}  Rg2 {[%clk 0:00:44]} 67. f3 {[%clk 0:00:13]}  Rh2 {[%clk 0:00:43]} 68. Ra8 {[%clk 0:00:13]}  Kf6 {[%clk 0:00:43]} 69. Ra6+ {[%clk 0:00:12]}  Kg7 {[%clk 0:00:43]} 70. Kg5 {[%clk 0:00:10]}  Rg2+ {[%clk 0:00:43]} 71. Kf5 {[%clk 0:00:11]}  Rb2 {[%clk 0:00:41]} 72. f4 {[%clk 0:00:11]}  Rb5+ {[%clk 0:00:40]} 73. Kg4 {[%clk 0:00:11]}  Rb4 {[%clk 0:00:40]} 74. Kg5 {[%clk 0:00:11]}  Rb1 {[%clk 0:00:39]} 75. Ra7+ {[%clk 0:00:11]}  Kf8 {[%clk 0:00:38]} 76. f5 {[%clk 0:00:12]}  Rb2 {[%clk 0:00:35]} 77. Kg6 {[%clk 0:00:11]}  Ke8 {[%clk 0:00:30]} 78. Ra8+ {[%clk 0:00:10]}  Kd7 {[%clk 0:00:29]} 79. f6 {[%clk 0:00:10]}  Rg2+ {[%clk 0:00:29]} 80. Kf7 {[%clk 0:00:10]}  Rf2 {[%clk 0:00:28]} 81. Ra4 {[%clk 0:00:10]}  Kd6 {[%clk 0:00:27]} 82. Re4 {[%clk 0:00:10]}  Rf1 {[%clk 0:00:26]} 83. Kg7 {[%clk 0:00:09]}  Rg1+ {[%clk 0:00:26]} 84. Kf8 {[%clk 0:00:08]}  Kd5 {[%clk 0:00:24]} 85. Re7 {[%clk 0:00:07]}  Kd6 {[%clk 0:00:24]} 86. f7 {[%clk 0:00:08]}  Rh1 {[%clk 0:00:19]} 87. Ke8 {[%clk 0:00:07]}  Ra1 {[%clk 0:00:16]} 88. Rd7+ {[%clk 0:00:06]}  Ke6 {[%clk 0:00:12]} 89. f8=Q {[%clk 0:00:06]}  Ra8+ {[%clk 0:00:12]} 90. Rd8 {[%clk 0:00:07]}  Rc8 {[%clk 0:00:11]} 91. Qe7+ {[%clk 0:00:06]} 1-0


[Site "https://www.chess.com"]

[Event "Titled Tuesday Blitz November 29 Late 2022"]
[White "Bjelobrk, Igor"]
[Black "Yeritsyan, Hayk"]
[WhiteFideId "4300726"]
[BlackFideId "13307320"]
[WhiteElo "2335"]
[BlackElo "2442"]
[Result "1-0"]
[Round "08"]
[TimeControl "180+1"]
[Date "2022.11.30"]
[WhiteClock "0:02:15"]
[BlackClock "0:01:43"]

1. Nf3 {[%clk 0:03:00]}  d5 {[%clk 0:02:56]} 2. c4 {[%clk 0:02:59]}  c6 {[%clk 0:02:56]} 3. d4 {[%clk 0:02:57]}  Nf6 {[%clk 0:02:56]} 4. g3 {[%clk 0:02:56]}  Bf5 {[%clk 0:02:56]} 5. Nc3 {[%clk 0:02:55]}  e6 {[%clk 0:02:56]} 6. Nh4 {[%clk 0:02:47]}  Be4 {[%clk 0:02:55]} 7. f3 {[%clk 0:02:46]}  Bg6 {[%clk 0:02:55]} 8. Qb3 {[%clk 0:02:45]}  Qb6 {[%clk 0:02:54]} 9. c5 {[%clk 0:02:42]}  Qxb3 {[%clk 0:02:54]} 10. axb3 {[%clk 0:02:39]}  Na6 {[%clk 0:02:48]} 11. Bf4 {[%clk 0:02:36]}  Nb4 {[%clk 0:02:45]} 12. Kd2 {[%clk 0:02:30]}  Be7 {[%clk 0:02:26]} 13. Ra4 {[%clk 0:02:27]}  a5 {[%clk 0:02:13]} 14. Bg2 {[%clk 0:02:25]}  O-O {[%clk 0:02:09]} 15. Bc7 {[%clk 0:02:23]}  Nc2 {[%clk 0:01:47]} 16. Nxg6 {[%clk 0:02:16]}  hxg6 {[%clk 0:01:43]} 17. Kxc2 {[%clk 0:02:15]} 1-0


[Site "https://www.chess.com"]

[Event "Titled Tuesday Blitz November 29 Late 2022"]
[White "Bluebaum, Matthias"]
[Black "Nakamura, Hikaru"]
[WhiteFideId "24651516"]
[BlackFideId "2016192"]
[WhiteElo "2633"]
[BlackElo "2909"]
[Result "0-1"]
[Round "08"]
[TimeControl "180+1"]
[Date "2022.11.30"]
[WhiteClock "0:00:04"]
[BlackClock "0:00:10"]

1. d4 {[%clk 0:03:00]}  f5 {[%clk 0:02:58]} 2. Nf3 {[%clk 0:02:59]}  g6 {[%clk 0:02:57]} 3. c4 {[%clk 0:02:58]}  Nf6 {[%clk 0:02:57]} 4. e3 {[%clk 0:02:57]}  Bg7 {[%clk 0:02:57]} 5. b4 {[%clk 0:02:58]}  e6 {[%clk 0:02:54]} 6. Be2 {[%clk 0:02:58]}  d6 {[%clk 0:02:55]} 7. Bb2 {[%clk 0:02:58]}  O-O {[%clk 0:02:55]} 8. O-O {[%clk 0:02:59]}  Qe7 {[%clk 0:02:56]} 9. a4 {[%clk 0:02:57]}  Nbd7 {[%clk 0:02:54]} 10. Qb3 {[%clk 0:02:57]}  Kh8 {[%clk 0:02:53]} 11. Nc3 {[%clk 0:02:57]}  Re8 {[%clk 0:02:48]} 12. Rfd1 {[%clk 0:02:48]}  h6 {[%clk 0:02:48]} 13. a5 {[%clk 0:02:47]}  a6 {[%clk 0:02:44]} 14. b5 {[%clk 0:02:47]}  g5 {[%clk 0:02:44]} 15. Na4 {[%clk 0:02:26]}  g4 {[%clk 0:02:33]} 16. Nd2 {[%clk 0:02:24]}  h5 {[%clk 0:02:33]} 17. b6 {[%clk 0:02:15]}  c6 {[%clk 0:02:27]} 18. d5 {[%clk 0:02:08]}  c5 {[%clk 0:02:11]} 19. dxe6 {[%clk 0:02:06]}  Qxe6 {[%clk 0:02:12]} 20. Nc3 {[%clk 0:02:00]}  Ne5 {[%clk 0:02:07]} 21. Nd5 {[%clk 0:01:53]}  Nxd5 {[%clk 0:02:07]} 22. cxd5 {[%clk 0:01:54]}  Qg6 {[%clk 0:02:04]} 23. Nc4 {[%clk 0:01:38]}  Bd7 {[%clk 0:01:56]} 24. Kh1 {[%clk 0:01:10]}  h4 {[%clk 0:01:56]} 25. h3 {[%clk 0:01:01]}  Re7 {[%clk 0:01:25]} 26. Nxe5 {[%clk 0:00:49]}  Bxe5 {[%clk 0:01:26]} 27. Bxe5+ {[%clk 0:00:49]}  Rxe5 {[%clk 0:01:26]} 28. f4 {[%clk 0:00:50]}  gxf3 {[%clk 0:01:19]} 29. Bxf3 {[%clk 0:00:50]}  Rae8 {[%clk 0:01:20]} 30. Re1 {[%clk 0:00:49]}  Bb5 {[%clk 0:01:16]} 31. Qc3 {[%clk 0:00:45]}  Kh7 {[%clk 0:01:13]} 32. Qd2 {[%clk 0:00:38]}  Qg3 {[%clk 0:01:12]} 33. Ra3 {[%clk 0:00:20]}  f4 {[%clk 0:01:12]} 34. e4 {[%clk 0:00:19]}  Bd7 {[%clk 0:01:03]} 35. Rc3 {[%clk 0:00:17]}  Qg5 {[%clk 0:01:02]} 36. Qf2 {[%clk 0:00:17]}  Kg7 {[%clk 0:01:01]} 37. Rf1 {[%clk 0:00:17]}  Qg3 {[%clk 0:00:59]} 38. Qd2 {[%clk 0:00:16]}  Qg5 {[%clk 0:01:00]} 39. Qf2 {[%clk 0:00:16]}  Rf8 {[%clk 0:00:57]} 40. Ra3 {[%clk 0:00:11]}  Be8 {[%clk 0:00:54]} 41. Rc3 {[%clk 0:00:11]}  Bg6 {[%clk 0:00:55]} 42. Rc4 {[%clk 0:00:09]}  Rfe8 {[%clk 0:00:52]} 43. Qb2 {[%clk 0:00:08]}  Qf6 {[%clk 0:00:50]} 44. Qf2 {[%clk 0:00:08]}  Qg5 {[%clk 0:00:47]} 45. Qb2 {[%clk 0:00:08]}  Kf8 {[%clk 0:00:44]} 46. Qf2 {[%clk 0:00:07]}  Ke7 {[%clk 0:00:44]} 47. Rfc1 {[%clk 0:00:04]}  Kf6 {[%clk 0:00:39]} 48. R4c2 {[%clk 0:00:04]}  Bxe4 {[%clk 0:00:39]} 49. Bxe4 {[%clk 0:00:05]}  Rxe4 {[%clk 0:00:40]} 50. Rf1 {[%clk 0:00:06]}  Qg3 {[%clk 0:00:38]} 51. Qg1 {[%clk 0:00:07]}  Re1 {[%clk 0:00:33]} 52. Rcf2 {[%clk 0:00:07]}  Rxf1 {[%clk 0:00:33]} 53. Qxf1 {[%clk 0:00:08]}  Re4 {[%clk 0:00:33]} 54. Re2 {[%clk 0:00:05]}  Qd3 {[%clk 0:00:25]} 55. Qa1+ {[%clk 0:00:05]}  Re5 {[%clk 0:00:20]} 56. Rxe5 {[%clk 0:00:04]}  dxe5 {[%clk 0:00:21]} 57. Qe1 {[%clk 0:00:05]}  Qg3 {[%clk 0:00:19]} 58. Qd1 {[%clk 0:00:04]}  c4 {[%clk 0:00:18]} 59. d6 {[%clk 0:00:05]}  Qd3 {[%clk 0:00:17]} 60. Qh5 {[%clk 0:00:05]}  Qxd6 {[%clk 0:00:16]} 61. Qh6+ {[%clk 0:00:05]}  Ke7 {[%clk 0:00:16]} 62. Qg7+ {[%clk 0:00:06]}  Ke6 {[%clk 0:00:16]} 63. Qg8+ {[%clk 0:00:04]}  Kf5 {[%clk 0:00:16]} 64. Qh7+ {[%clk 0:00:04]}  Ke6 {[%clk 0:00:15]} 65. Qg8+ {[%clk 0:00:05]}  Kd7 {[%clk 0:00:15]} 66. Qf7+ {[%clk 0:00:04]}  Kc6 {[%clk 0:00:14]} 67. Qxc4+ {[%clk 0:00:04]}  Qc5 {[%clk 0:00:15]} 68. Qe4+ {[%clk 0:00:04]}  Qd5 {[%clk 0:00:14]} 69. Qh7 {[%clk 0:00:05]}  Kb5 {[%clk 0:00:11]} 70. Qxh4 {[%clk 0:00:05]}  Kxa5 {[%clk 0:00:11]} 71. Qf2 {[%clk 0:00:05]}  Qd4 {[%clk 0:00:09]} 72. Qa2+ {[%clk 0:00:04]}  Kxb6 {[%clk 0:00:09]} 73. h4 {[%clk 0:00:05]}  e4 {[%clk 0:00:10]} 74. Qb3+ {[%clk 0:00:05]}  Ka7 {[%clk 0:00:09]} 75. Qb1 {[%clk 0:00:05]}  e3 {[%clk 0:00:10]} 76. h5 {[%clk 0:00:05]}  e2 {[%clk 0:00:10]} 77. Kh2 {[%clk 0:00:04]}  f3 {[%clk 0:00:10]} 78. gxf3 {[%clk 0:00:03]}  Qe5+ {[%clk 0:00:11]} 79. Kh3 {[%clk 0:00:04]}  e1=Q {[%clk 0:00:11]} 80. Qb6+ {[%clk 0:00:03]}  Kxb6 {[%clk 0:00:10]} 81. h6 {[%clk 0:00:04]}  Q5g3# {[%clk 0:00:10]} 0-1


[Site "https://www.chess.com"]

[Event "Titled Tuesday Blitz November 29 Late 2022"]
[White "Bok, Benjamin"]
[Black "Korobov, Anton"]
[WhiteFideId "1017063"]
[BlackFideId "14105730"]
[WhiteElo "2658"]
[BlackElo "2635"]
[Result "0-1"]
[Round "08"]
[TimeControl "180+1"]
[Date "2022.11.30"]
[WhiteClock "0:00:02"]
[BlackClock "0:00:06"]

1. d4 {[%clk 0:03:00]}  Nf6 {[%clk 0:03:00]} 2. c4 {[%clk 0:03:01]}  g6 {[%clk 0:03:00]} 3. g3 {[%clk 0:03:01]}  Bg7 {[%clk 0:03:00]} 4. Bg2 {[%clk 0:03:01]}  O-O {[%clk 0:03:00]} 5. Nc3 {[%clk 0:03:01]}  Nc6 {[%clk 0:03:01]} 6. Nf3 {[%clk 0:03:01]}  a6 {[%clk 0:03:01]} 7. O-O {[%clk 0:03:00]}  Rb8 {[%clk 0:03:01]} 8. d5 {[%clk 0:02:23]}  Na5 {[%clk 0:03:01]} 9. c5 {[%clk 0:02:11]}  d6 {[%clk 0:02:58]} 10. b4 {[%clk 0:01:54]}  Nc4 {[%clk 0:02:57]} 11. Nd4 {[%clk 0:01:54]}  dxc5 {[%clk 0:02:17]} 12. bxc5 {[%clk 0:01:55]}  Nd7 {[%clk 0:02:17]} 13. c6 {[%clk 0:01:48]}  Nc5 {[%clk 0:02:05]} 14. cxb7 {[%clk 0:01:35]}  Bxb7 {[%clk 0:02:06]} 15. Rb1 {[%clk 0:01:35]}  Ba8 {[%clk 0:01:55]} 16. Rxb8 {[%clk 0:00:59]}  Qxb8 {[%clk 0:01:56]} 17. e3 {[%clk 0:00:59]}  Qb4 {[%clk 0:01:50]} 18. Qc2 {[%clk 0:00:59]}  Rb8 {[%clk 0:01:34]} 19. h4 {[%clk 0:00:55]}  h5 {[%clk 0:01:26]} 20. Rd1 {[%clk 0:00:54]}  Na3 {[%clk 0:01:08]} 21. Bxa3 {[%clk 0:00:34]}  Qxa3 {[%clk 0:01:09]} 22. Ne4 {[%clk 0:00:33]}  Nxe4 {[%clk 0:00:54]} 23. Bxe4 {[%clk 0:00:34]}  Qd6 {[%clk 0:00:48]} 24. Nc6 {[%clk 0:00:27]}  Rb2 {[%clk 0:00:46]} 25. Qa4 {[%clk 0:00:23]}  Bb7 {[%clk 0:00:42]} 26. Kg2 {[%clk 0:00:20]}  Bc8 {[%clk 0:00:39]} 27. Bf3 {[%clk 0:00:19]}  Bf6 {[%clk 0:00:20]} 28. a3 {[%clk 0:00:19]}  Qc5 {[%clk 0:00:20]} 29. Qf4 {[%clk 0:00:14]}  Kg7 {[%clk 0:00:17]} 30. Rf1 {[%clk 0:00:08]}  Qxa3 {[%clk 0:00:16]} 31. Qxc7 {[%clk 0:00:07]}  Bf5 {[%clk 0:00:16]} 32. Qf4 {[%clk 0:00:06]}  a5 {[%clk 0:00:16]} 33. e4 {[%clk 0:00:06]}  Bxe4 {[%clk 0:00:06]} 34. Qxe4 {[%clk 0:00:06]}  a4 {[%clk 0:00:07]} 35. Re1 {[%clk 0:00:04]}  Qb3 {[%clk 0:00:07]} 36. Re3 {[%clk 0:00:04]}  Qb6 {[%clk 0:00:07]} 37. Re2 {[%clk 0:00:03]}  a3 {[%clk 0:00:07]} 38. Rxb2 {[%clk 0:00:03]}  Qxb2 {[%clk 0:00:06]} 39. d6 {[%clk 0:00:01]}  exd6 {[%clk 0:00:06]} 40. Qd5 {[%clk 0:00:02]}  a2 {[%clk 0:00:06]} 41. Nd8 {[%clk 0:00:02]}  Bxd8 {[%clk 0:00:06]} 0-1


[Site "https://www.chess.com"]

[Event "Titled Tuesday Blitz November 29 Late 2022"]
[White "Chernomordik, Pavel"]
[Black "Abrahamyan, Tatev"]
[WhiteFideId "2804530"]
[BlackFideId "13301918"]
[WhiteElo "2192"]
[BlackElo "2347"]
[Result "0-1"]
[Round "08"]
[TimeControl "180+1"]
[Date "2022.11.30"]
[WhiteClock "0:00:07"]
[BlackClock "0:00:29"]

1. e4 {[%clk 0:03:00]}  e6 {[%clk 0:02:56]} 2. Nc3 {[%clk 0:03:00]}  d5 {[%clk 0:02:57]} 3. d4 {[%clk 0:02:59]}  Bb4 {[%clk 0:02:56]} 4. Ne2 {[%clk 0:02:58]}  Nf6 {[%clk 0:02:52]} 5. Bg5 {[%clk 0:02:55]}  dxe4 {[%clk 0:02:49]} 6. a3 {[%clk 0:02:54]}  Be7 {[%clk 0:02:49]} 7. Bxf6 {[%clk 0:02:53]}  Bxf6 {[%clk 0:02:50]} 8. Nxe4 {[%clk 0:02:54]}  b6 {[%clk 0:02:49]} 9. c3 {[%clk 0:02:51]}  Bb7 {[%clk 0:02:49]} 10. N2g3 {[%clk 0:02:47]}  Be7 {[%clk 0:02:47]} 11. Bb5+ {[%clk 0:02:40]}  c6 {[%clk 0:02:45]} 12. Bd3 {[%clk 0:02:38]}  O-O {[%clk 0:02:42]} 13. O-O {[%clk 0:02:37]}  Nd7 {[%clk 0:02:41]} 14. Qe2 {[%clk 0:02:26]}  c5 {[%clk 0:02:40]} 15. dxc5 {[%clk 0:02:24]}  Nxc5 {[%clk 0:02:40]} 16. Nxc5 {[%clk 0:02:24]}  Bxc5 {[%clk 0:02:40]} 17. Rad1 {[%clk 0:02:22]}  Qc7 {[%clk 0:02:39]} 18. Ne4 {[%clk 0:02:19]}  Be7 {[%clk 0:02:38]} 19. Qh5 {[%clk 0:02:16]}  g6 {[%clk 0:02:33]} 20. Qh6 {[%clk 0:02:08]}  Rfd8 {[%clk 0:02:29]} 21. Ng5 {[%clk 0:02:03]}  Bxg5 {[%clk 0:02:28]} 22. Qxg5 {[%clk 0:02:03]}  Rd5 {[%clk 0:02:27]} 23. Qg3 {[%clk 0:01:56]}  Qe7 {[%clk 0:02:18]} 24. h4 {[%clk 0:01:49]}  Rad8 {[%clk 0:02:16]} 25. Be2 {[%clk 0:01:47]}  Qc5 {[%clk 0:02:02]} 26. Rxd5 {[%clk 0:01:41]}  Bxd5 {[%clk 0:02:01]} 27. Rd1 {[%clk 0:01:38]}  Qe7 {[%clk 0:01:58]} 28. h5 {[%clk 0:01:36]}  Kg7 {[%clk 0:01:56]} 29. Qe5+ {[%clk 0:01:33]}  f6 {[%clk 0:01:54]} 30. Qe3 {[%clk 0:01:32]}  e5 {[%clk 0:01:51]} 31. h6+ {[%clk 0:01:29]}  Kf8 {[%clk 0:01:48]} 32. Qd2 {[%clk 0:01:21]}  Rd7 {[%clk 0:01:41]} 33. g4 {[%clk 0:01:22]}  Be6 {[%clk 0:01:34]} 34. Qe3 {[%clk 0:01:22]}  Rxd1+ {[%clk 0:01:33]} 35. Bxd1 {[%clk 0:01:21]}  Qd7 {[%clk 0:01:34]} 36. Qf3 {[%clk 0:01:20]}  Ke7 {[%clk 0:01:30]} 37. Be2 {[%clk 0:01:14]}  Bd5 {[%clk 0:01:23]} 38. Qe3 {[%clk 0:01:13]}  Bc6 {[%clk 0:01:19]} 39. g5 {[%clk 0:01:11]}  Qd5 {[%clk 0:01:14]} 40. gxf6+ {[%clk 0:01:06]}  Kxf6 {[%clk 0:01:14]} 41. f3 {[%clk 0:01:06]}  Qc5 {[%clk 0:01:08]} 42. Kf2 {[%clk 0:01:01]}  Qxe3+ {[%clk 0:01:06]} 43. Kxe3 {[%clk 0:01:00]}  Kg5 {[%clk 0:01:07]} 44. c4 {[%clk 0:00:54]}  Kxh6 {[%clk 0:01:07]} 45. b4 {[%clk 0:00:55]}  Kg5 {[%clk 0:01:07]} 46. c5 {[%clk 0:00:50]}  bxc5 {[%clk 0:01:07]} 47. bxc5 {[%clk 0:00:50]}  h5 {[%clk 0:01:07]} 48. Bd3 {[%clk 0:00:45]}  Kf6 {[%clk 0:01:02]} 49. f4 {[%clk 0:00:33]}  exf4+ {[%clk 0:01:00]} 50. Kxf4 {[%clk 0:00:32]}  g5+ {[%clk 0:01:00]} 51. Kg3 {[%clk 0:00:27]}  h4+ {[%clk 0:00:59]} 52. Kg4 {[%clk 0:00:26]}  Bd7+ {[%clk 0:00:58]} 53. Kf3 {[%clk 0:00:24]}  Ke5 {[%clk 0:00:57]} 54. Be4 {[%clk 0:00:22]}  g4+ {[%clk 0:00:55]} 55. Ke3 {[%clk 0:00:21]}  h3 {[%clk 0:00:52]} 56. c6 {[%clk 0:00:21]}  Bc8 {[%clk 0:00:52]} 57. c7 {[%clk 0:00:19]}  g3 {[%clk 0:00:48]} 58. Bc6 {[%clk 0:00:17]}  Kd6 {[%clk 0:00:44]} 59. Be4 {[%clk 0:00:13]}  Kxc7 {[%clk 0:00:42]} 60. Kf3 {[%clk 0:00:13]}  g2 {[%clk 0:00:41]} 61. Kf2 {[%clk 0:00:13]}  Bb7 {[%clk 0:00:40]} 62. Bf5 {[%clk 0:00:12]}  Bc8 {[%clk 0:00:36]} 63. Be4 {[%clk 0:00:10]}  Kb6 {[%clk 0:00:36]} 64. Bxg2 {[%clk 0:00:09]}  hxg2 {[%clk 0:00:36]} 65. Kxg2 {[%clk 0:00:09]}  Kc5 {[%clk 0:00:35]} 66. Kf2 {[%clk 0:00:10]}  Kc4 {[%clk 0:00:32]} 67. Ke3 {[%clk 0:00:11]}  Kb3 {[%clk 0:00:30]} 68. Kd2 {[%clk 0:00:11]}  Kb2 {[%clk 0:00:30]} 69. a4 {[%clk 0:00:10]}  a5 {[%clk 0:00:29]} 70. Kd3 {[%clk 0:00:10]}  Bd7 {[%clk 0:00:28]} 71. Kc4 {[%clk 0:00:08]}  Bxa4 {[%clk 0:00:28]} 72. Kc5 {[%clk 0:00:08]}  Bb3 {[%clk 0:00:28]} 73. Kb5 {[%clk 0:00:07]}  a4 {[%clk 0:00:29]} 0-1


[Site "https://www.chess.com"]

[Event "Titled Tuesday Blitz November 29 Late 2022"]
[White "Chigaev, Maksim"]
[Black "Bazeev, German"]
[WhiteFideId "4108116"]
[BlackFideId "24119350"]
[WhiteElo "2541"]
[BlackElo "2493"]
[Result "1-0"]
[Round "08"]
[TimeControl "180+1"]
[Date "2022.11.30"]
[WhiteClock "0:00:05"]
[BlackClock "0:00:04"]

1. c4 {[%clk 0:03:00]}  e5 {[%clk 0:02:59]} 2. g3 {[%clk 0:03:00]}  Nf6 {[%clk 0:02:59]} 3. Bg2 {[%clk 0:03:01]}  h6 {[%clk 0:02:57]} 4. d3 {[%clk 0:02:57]}  Bb4+ {[%clk 0:02:54]} 5. Nc3 {[%clk 0:02:52]}  O-O {[%clk 0:02:51]} 6. Bd2 {[%clk 0:02:51]}  Re8 {[%clk 0:02:49]} 7. Nf3 {[%clk 0:02:51]}  Nc6 {[%clk 0:02:46]} 8. O-O {[%clk 0:02:52]}  d6 {[%clk 0:02:46]} 9. a3 {[%clk 0:02:41]}  Bxc3 {[%clk 0:02:35]} 10. Bxc3 {[%clk 0:02:41]}  Bg4 {[%clk 0:02:21]} 11. h3 {[%clk 0:02:37]}  Bf5 {[%clk 0:02:21]} 12. e4 {[%clk 0:02:34]}  Bd7 {[%clk 0:02:21]} 13. Kh2 {[%clk 0:02:24]}  Nh7 {[%clk 0:02:14]} 14. Nd2 {[%clk 0:02:18]}  Nd4 {[%clk 0:02:09]} 15. Bxd4 {[%clk 0:02:14]}  exd4 {[%clk 0:02:10]} 16. f4 {[%clk 0:02:15]}  c5 {[%clk 0:02:05]} 17. b4 {[%clk 0:02:14]}  b6 {[%clk 0:02:01]} 18. Rb1 {[%clk 0:01:57]}  Bc6 {[%clk 0:01:55]} 19. Nf3 {[%clk 0:01:38]}  Qd7 {[%clk 0:01:47]} 20. Nh4 {[%clk 0:01:36]}  Nf8 {[%clk 0:01:36]} 21. Nf5 {[%clk 0:01:34]}  Kh7 {[%clk 0:01:14]} 22. g4 {[%clk 0:01:23]}  Ng6 {[%clk 0:01:06]} 23. h4 {[%clk 0:01:06]}  Qd8 {[%clk 0:01:00]} 24. Kg3 {[%clk 0:00:52]}  Ne7 {[%clk 0:00:55]} 25. Nxe7 {[%clk 0:00:51]}  Qxe7 {[%clk 0:00:53]} 26. g5 {[%clk 0:00:50]}  cxb4 {[%clk 0:00:53]} 27. axb4 {[%clk 0:00:49]}  a5 {[%clk 0:00:53]} 28. b5 {[%clk 0:00:33]}  Bd7 {[%clk 0:00:51]} 29. Qd2 {[%clk 0:00:28]}  Rac8 {[%clk 0:00:50]} 30. Qf2 {[%clk 0:00:26]}  Qe6 {[%clk 0:00:39]} 31. Kh2 {[%clk 0:00:22]}  Rc5 {[%clk 0:00:35]} 32. Qxd4 {[%clk 0:00:13]}  Qg4 {[%clk 0:00:21]} 33. Qf2 {[%clk 0:00:14]}  hxg5 {[%clk 0:00:22]} 34. fxg5 {[%clk 0:00:14]}  Be6 {[%clk 0:00:17]} 35. Qg3 {[%clk 0:00:13]}  Qxg3+ {[%clk 0:00:13]} 36. Kxg3 {[%clk 0:00:13]}  g6 {[%clk 0:00:11]} 37. Rf6 {[%clk 0:00:10]}  Kg7 {[%clk 0:00:11]} 38. Rbf1 {[%clk 0:00:10]}  Re7 {[%clk 0:00:11]} 39. Bh3 {[%clk 0:00:09]}  Rcc7 {[%clk 0:00:06]} 40. Bxe6 {[%clk 0:00:08]}  Rxe6 {[%clk 0:00:07]} 41. Rxe6 {[%clk 0:00:04]}  fxe6 {[%clk 0:00:08]} 42. Ra1 {[%clk 0:00:04]}  e5 {[%clk 0:00:08]} 43. Kg4 {[%clk 0:00:03]}  Rf7 {[%clk 0:00:07]} 44. Kg3 {[%clk 0:00:04]}  Rf8 {[%clk 0:00:06]} 45. Rd1 {[%clk 0:00:05]}  Rc8 {[%clk 0:00:05]} 46. Kf3 {[%clk 0:00:02]}  Rf8+ {[%clk 0:00:05]} 47. Ke3 {[%clk 0:00:03]}  Rh8 {[%clk 0:00:06]} 48. d4 {[%clk 0:00:03]}  Rxh4 {[%clk 0:00:05]} 49. dxe5 {[%clk 0:00:04]}  dxe5 {[%clk 0:00:05]} 50. Rd7+ {[%clk 0:00:05]}  Kf8 {[%clk 0:00:05]} 51. Rd6 {[%clk 0:00:05]}  Rh3+ {[%clk 0:00:05]} 52. Kd2 {[%clk 0:00:05]}  Rh4 {[%clk 0:00:05]} 53. Rxg6 {[%clk 0:00:04]}  Rxe4 {[%clk 0:00:06]} 54. Kd3 {[%clk 0:00:04]}  Rh4 {[%clk 0:00:02]} 55. Rxb6 {[%clk 0:00:04]}  Ke7 {[%clk 0:00:03]} 56. Ra6 {[%clk 0:00:04]}  Kd7 {[%clk 0:00:01]} 57. Rxa5 {[%clk 0:00:04]}  Kd6 {[%clk 0:00:02]} 58. Ra6+ {[%clk 0:00:04]}  Kc5 {[%clk 0:00:03]} 59. Rc6+ {[%clk 0:00:05]}  Kb4 {[%clk 0:00:04]} 60. b6 {[%clk 0:00:05]} 1-0


[Site "https://www.chess.com"]